[Event "30th Abu Dhabi Festival A-Open 2024"]
[Site "Abu Dhabi"]
[Date "2024.08.20"]
[Round "5.8"]
[White "Shen, Fuyan"]
[Black "Wang, Hao(Zj)"]
[Result "1-0"]
[ECO "A67"]
[WhiteElo "1826"]
[BlackElo "2703"]
[Annotator "TA"]
[PlyCount "139"]
[EventDate "2024.08.15"]
[EventType "swiss"]
[EventCountry "UAE"]
[SourceTitle "playchess.com"]
[Source "ChessBase"]
[SourceQuality "1"]
[TimeControl "5400+30"]

{[%evp 21,139,17,18,0,11,-10,60,65,69,72,60,48,129,121,125,134,139,144,122,127,132,147,156,159,212,154,147,144,133,142,162,137,243,243,339,291,284,293,347,333,367,361,491,333,396,391,319,302,289,276,268,177,378,98,98,105,365,346,338,250,242,238,268,267,287,300,276,272,279,271,264,264,249,241,241,81,81,81,81,82,98,98,98,94,178,167,158,102,109,81,83,8,85,86,1839,2027,2366,2306,5618,6104,5020,3025,29974,29973,29975,29976,29978,29979,29981,29982,29984,29985,29986,29987,29987,29981,29991,29992,29992,29993]} 1. d4 {[%emt 0:00:05]} Nf6 {[%emt 0:00:06]} 2. c4 {[%emt 0:00:10]} c5 {[%emt 0:02:42]} 3. d5 {[%emt 0:00:05]} e6 {[%emt 0:00:38]} 4. Nc3 {[%emt 0:00:06]} exd5 {[%emt 0:00:05]} 5. cxd5 {[%emt 0:00:05]} d6 {[%emt 0:00:06]} 6. e4 {[%emt 0:00:04]} g6 {[%emt 0:00:08]} 7. f4 {[%emt 0:00:04]} Bg7 {[%emt 0:00:05]} 8. Bb5+ {[%emt 0:00:05]} Nfd7 {[%emt 0:00:05]} 9. a4 {[%emt 0:00:04]} O-O {[%emt 0:00:06]} 10. Nf3 {[%emt 0:00:04]} Na6 {[%emt 0:00:32]} 11. O-O {[%emt 0:00:16]} Nb4 {[%emt 0:02:45]} 12. h3 {[%emt 0:00:25]} a6 {[%emt 0:01:23]} 13. Bc4 {[%emt 0:00:05]} Rb8 {[%emt 0:06:36]} (13... f5 $11) 14. Re1 $14 {[%emt 0:01:33] White is slightly better.} Re8 {[%emt 0:00:39]} 15. Be3 {[%emt 0:00:37]} b5 {[%emt 0:15:59]} 16. axb5 {[%emt 0:00:15]} Nb6 {[%emt 0:00:23]} (16... axb5 $14 17. Bxb5 (17. Nxb5 Nb6 $15) 17... Bxc3 18. bxc3 Rxb5) 17. Bf1 $16 {[%emt 0:04:41]} axb5 {[%emt 0:00:21]} 18. Bxb5 {[%emt 0:00:20]} Bd7 {[%emt 0:00:34] Hoping for ...Bxb5.} 19. Bf1 {[%emt 0:01:13]} Ra8 {[%emt 0:01:26]} 20. Qd2 {[%emt 0:01:55]} Rxa1 {[%emt 0:19:08]} 21. Rxa1 {[%emt 0:00:04]} Qc7 {[%emt 0:00:06]} 22. Rd1 {[%emt 0:16:01]} Qc8 {[%emt 0:06:20]} (22... f6 $16 23. e5 fxe5) 23. Bf2 {[%emt 0:12:57]} Bh6 {[%emt 0:05:41]} 24. Re1 {[%emt 0:05:23]} Qb7 {[%emt 0:01:29]} 25. g3 {[%emt 0:12:56]} Na4 {[%emt 0:06:21]} 26. Bg2 {[%emt 0:05:04]} Nb6 {[%emt 0:05:30]} (26... Ra8 $16 27. e5 Nxc3) 27. e5 $18 {[%emt 0:03:32]} f5 {[%emt 0:17:36] Inhibits Ne4.} 28. exd6 {[%emt 0:04:17]} Rxe1+ {[%emt 0:01:23]} 29. Nxe1 {[%emt 0:00:46]} (29. Qxe1 Bf8 30. Bxc5 Nd3 $16) 29... Bf8 {[%emt 0:01:42]} 30. Bxc5 {[%emt 0:01:37]} Na6 {[%emt 0:00:05]} 31. b4 {[%emt 0:03:57]} Bg7 {[%emt 0:01:21]} 32. Qd3 {[%emt 0:04:55] Repels Nc4} Qc8 {[%emt 0:01:13]} 33. Bxb6 {[%emt 0:02:55]} (33. Qe3 Nxc5 34. bxc5 Nc4 $16) 33... Nxb4 {[%emt 0:00:30]} 34. Qe3 {[%emt 0:06:56]} Qxc3 {[%emt 0:00:07]} 35. Qe7 {[%emt 0:00:35]} Qc8 {[%emt 0:01:02]} 36. Bc7 {[%emt 0:01:47]} Qe8 $2 {[%emt 0:01:06]} (36... Na6 37. Nf3 Bf8) 37. Ba5 $2 {[%emt 0:02:59]} (37. Bf1 $18 {is more deadly.}) 37... Bd4+ $16 {[%emt 0:01:56]} 38. Kh2 {[%emt 0:01:54]} Bc5 $2 {[%emt 0:01:39][%mdl 8192]} (38... Qxe7 $16 {was worth a try.} 39. dxe7 Bc5) 39. Qe5 $18 {[%emt 0:00:34] Threatens to win with Qc3.} Qf8 {[%emt 0:00:13]} 40. Bc7 {[%emt 0:00:53] aiming for Bf1.} Na6 {[%emt 0:00:34]} 41. Nd3 {[%emt 0:00:27] Nxc5 is the strong threat.} Ba3 {[%emt 0:00:05]} 42. Qa1 {[%emt 0:02:35]} Bxd6 {[%emt 0:00:39]} 43. Bxd6 {[%emt 0:03:09]} ({Don't take} 43. Qxa6 Bxc7 44. Ne5 Bxe5 $18) 43... Qxd6 {[%emt 0:00:02]} 44. Ne5 {[%emt 0:00:09] Strongly threatening Nxd7.} Bb5 {[%emt 0:00:19]} 45. Qa5 {[%emt 0:01:08]} Nc7 {[%emt 0:00:32]} 46. Qa7 {[%emt 0:00:58]} Kg7 {[%emt 0:00:11]} 47. Qb8 {[%emt 0:00:34]} g5 {[%emt 0:00:53] [#]} 48. Qh8+ $2 {[%emt 0:02:40]} Kxh8 $16 {[%emt 0:00:16]} 49. Nf7+ {[%emt 0:00:02]} Kg7 {[%emt 0:00:46]} 50. Nxd6 {[%emt 0:00:01]} gxf4 {[%emt 0:00:05]} 51. gxf4 {[%emt 0:00:03][%mdl 4096] Endgame. KBN-KBN} ({Don't play} 51. Nxf5+ Kf6 52. Nh6 fxg3+ 53. Kxg3 Bd7 $11) 51... Kf6 {[%emt 0:01:09]} 52. Kg3 {[%emt 0:01:12] White is more active.} Bd3 {[%emt 0:00:50] [#]} (52... Ba6 $16 {was called for.}) 53. Nb7 $1 $18 {[%emt 0:00:52]} Bb5 {[%emt 0:00:56]} 54. Kh4 {[%emt 0:00:52]} (54. Kf2 $142) 54... Be8 $16 {[%emt 0:00:12]} 55. Bf3 {[%emt 0:00:28]} Nb5 {[%emt 0:00:39]} 56. Bh5 {[%emt 0:00:34]} ({White should try} 56. d6 $16) 56... Bd7 {[%emt 0:00:05]} (56... Bxh5 $1 $11 {remains equal.} 57. Kxh5 Nc3) 57. Nc5 {[%emt 0:00:29]} (57. d6 {looks sharper.} Bc6 58. Bf3 Bxb7 59. d7) 57... Ke7 {[%emt 0:00:52][%mdl 8192]} (57... Bc8 $16) 58. Nxd7 $18 {[%emt 0:00:29]} ({Not} 58. Kg5 Bc8 $16) 58... Kxd7 {[%emt 0:00:00] KB-KN} 59. Kg5 {[%emt 0:00:26][%cal Og5f6] Black must now prevent Kf6!} Nd4 {[%emt 0:01:00]} 60. Kf6 {[%emt 0:00:35]} Kd6 {[%emt 0:00:05]} 61. Bf7 {[%emt 0:00:08]} h6 {[%emt 0:01:11]} 62. h4 {[%emt 0:00:36][%cal Bh3h4,Bh4h5][%mdl 32] White mates.} Nf3 {[%emt 0:00:23]} 63. h5 {[%emt 0:00:09]} Nd4 {[%emt 0:00:35]} 64. Be6 {[%emt 0:00:34]} Ne2 {[%emt 0:00:04]} 65. Kxf5 {[%emt 0:00:07]} Ke7 {[%emt 0:00:37]} 66. Ke5 {[%emt 0:00:34]} Ng3 {[%emt 0:00:38]} 67. d6+ {[%emt 0:00:19][%cal Bd5d6,Bd6d7][%mdl 32]} Ke8 {[%emt 0:00:03]} 68. Bg4 {[%emt 0:00:19]} Kf7 {[%emt 0:00:03]} 69. f5 {[%emt 0:00:18]} Kf8 {[%emt 0:01:36]} 70. d7 {[%emt 0:00:14] Weighted Error Value: White=0.33/Black=0.36.  Loses game:     	---       	Black=2      Missed win:     	White=1     	---        Mistake:       	White=3     	Black=7      Inaccurate:     	White=2     	Black=2      OK:         	White=17    	Black=18     Best:        	White=5     	Black=4      Strong:       	White=1     	---} 1-0

[Event "30th Abu Dhabi Festival A-Open 2024"]
[Site "Abu Dhabi"]
[Date "2024.08.20"]
[Round "5.9"]
[White "Saydaliev, Akobirkhon"]
[Black "Li, Yage"]
[Result "1-0"]
[ECO "E35"]
[WhiteElo "2266"]
[BlackElo "1949"]
[Annotator "RC"]
[PlyCount "89"]
[EventDate "2024.08.15"]
[EventType "swiss"]
[EventCountry "UAE"]
[SourceTitle "playchess.com"]
[Source "ChessBase"]
[SourceQuality "1"]
[TimeControl "5400+30"]

1. d4 {[%emt 0:00:02]} Nf6 {[%emt 0:00:02]} 2. c4 {[%emt 0:00:04]} e6 {[%emt 0:00:05]} 3. Nc3 {[%emt 0:00:05]} Bb4 {[%emt 0:00:06]} 4. Qc2 {[%emt 0:00:05]} d5 {[%emt 0:00:10]} 5. cxd5 {[%emt 0:00:48]} exd5 {[%emt 0:00:03]} 6. Nf3 {[%emt 1:32:26]} c5 {[%emt 0:03:43]} 7. Bd2 {[%emt 0:00:00]} Nc6 {[%emt 0:01:30]} 8. dxc5 {[%emt 0:00:00]} Bxc5 {[%emt 0:02:18]} 9. g3 {[%emt 0:00:00]} Nb4 {[%emt 0:04:05]} 10. Qb3 {[%emt 0:00:00]} Bf5 {[%emt 0:01:26]} 11. Rc1 {[%emt 0:00:00]} Qe7 {[%emt 0:01:39]} 12. e3 {[%emt 0:00:00]} O-O {[%emt 0:16:00]} 13. Na4 {[%emt 0:00:00]} Bd6 {[%emt 0:17:30]} 14. Nd4 {[%emt 0:00:00]} Be4 {[%emt 0:00:16]} 15. f3 {[%emt 0:00:00]} Bg6 {[%emt 0:00:12]} 16. Be2 {[%emt 0:00:00]} Nc6 {[%emt 0:04:31]} 17. Nxc6 {[%emt 0:00:00]} bxc6 {[%emt 0:00:03]} 18. Rxc6 {[%emt 0:00:00]} d4 {[%emt 0:05:31]} 19. Rxd6 {[%emt 0:00:00]} Qxd6 {[%emt 0:00:23]} 20. Bb4 {[%emt 0:00:00]} Qc6 {[%emt 0:10:37]} 21. Bxf8 {[%emt 0:00:00]} Rxf8 {[%emt 0:00:14]} 22. Qc4 {[%emt 0:00:00]} Qxc4 {[%emt 0:10:12]} 23. Bxc4 {[%emt 0:00:00]} Rc8 {[%emt 0:00:06]} 24. b3 {[%emt 0:00:00]} Bd3 {[%emt 0:01:03]} 25. Nb2 {[%emt 0:00:00]} Bxc4 {[%emt 0:00:10]} 26. Nxc4 {[%emt 0:00:00]} dxe3 {[%emt 0:00:07]} 27. Ke2 {[%emt 0:00:00]} Nd5 {[%emt 0:00:10]} 28. f4 {[%emt 0:00:00]} Rc7 {[%emt 0:03:35]} 29. Kf3 {[%emt 0:00:00]} Nc3 {[%emt 0:00:51]} 30. Kxe3 {[%emt 0:00:00]} Nxa2 {[%emt 0:00:10]} 31. Ra1 {[%emt 0:00:00]} Nb4 {[%emt 0:01:18]} 32. Ra5 {[%emt 0:00:00]} Re7+ {[%emt 0:02:37]} 33. Kd2 {[%emt 0:00:00]} f6 {[%emt 0:00:50]} 34. Kc3 {[%emt 0:00:00]} Nc6 {[%emt 0:01:10]} 35. Rc5 {[%emt 0:00:00]} Nd8 {[%emt 0:00:06]} 36. Rc8 {[%emt 0:00:00]} Rd7 {[%emt 0:00:09]} 37. b4 {[%emt 0:00:00]} Kf7 {[%emt 0:00:23]} 38. b5 {[%emt 0:00:00]} Ne6 {[%emt 0:02:02]} 39. Kb4 {[%emt 0:00:00]} Rd1 {[%emt 0:04:28]} 40. f5 {[%emt 0:00:00]} Nd4 {[%emt 0:00:50]} 41. Rc7+ {[%emt 0:00:00]} Kf8 {[%emt 0:00:15]} 42. Na3 {[%emt 0:00:00]} Nxf5 {[%emt 0:02:31]} 43. Rxa7 {[%emt 0:00:00]} Ke8 {[%emt 0:00:33]} 44. b6 {[%emt 0:00:00]} Kd8 {[%emt 0:00:11]} 45. Ra8+ {[%emt 0:00:00]} 1-0

[Event "30th Abu Dhabi Festival A-Open 2024"]
[Site "Abu Dhabi"]
[Date "2024.08.20"]
[Round "5.10"]
[White "Diaz Villagran, Robert"]
[Black "Khalifah, Khaled"]
[Result "1-0"]
[ECO "B28"]
[WhiteElo "2268"]
[BlackElo "1991"]
[Annotator "RC"]
[PlyCount "47"]
[EventDate "2024.08.15"]
[EventType "swiss"]
[EventCountry "UAE"]
[SourceTitle "playchess.com"]
[Source "ChessBase"]
[SourceQuality "1"]
[TimeControl "5400+30"]

1. e4 {[%emt 0:01:13]} c5 {[%emt 1:31:00]} 2. Nf3 {[%emt 0:01:01]} a6 {[%emt 0:00:00]} 3. d3 {[%emt 0:00:34]} Nc6 {[%emt 0:00:00]} 4. g3 {[%emt 0:00:24]} e5 {[%emt 0:00:00]} 5. Bg2 {[%emt 0:00:09]} d6 {[%emt 0:00:00]} 6. c3 {[%emt 0:01:51]} Nf6 {[%emt 0:00:00]} 7. O-O {[%emt 0:02:15]} Be7 {[%emt 0:00:00]} 8. Re1 {[%emt 0:06:21]} O-O {[%emt 0:00:00]} 9. h3 {[%emt 0:00:22]} b6 {[%emt 0:00:00]} 10. d4 {[%emt 0:01:36]} cxd4 {[%emt 0:00:00]} 11. cxd4 {[%emt 0:00:20]} Bb7 {[%emt 0:00:00]} 12. Nc3 {[%emt 0:04:43]} Rc8 {[%emt 0:00:00]} 13. Be3 {[%emt 1:16:11]} exd4 {[%emt 0:00:00]} 14. Nxd4 {[%emt 0:00:00]} Ne5 {[%emt 0:00:00]} 15. Nf5 {[%emt 0:00:00]} Nc4 {[%emt 0:00:00]} 16. Bd4 {[%emt 0:00:00]} Nxb2 {[%emt 0:00:00]} 17. Qd2 {[%emt 0:00:00]} Nc4 {[%emt 0:00:00]} 18. Qg5 {[%emt 0:00:00]} Ne8 {[%emt 0:00:00]} 19. Qxe7 {[%emt 0:00:00]} Ba8 {[%emt 0:00:00]} 20. Nd5 {[%emt 0:00:00]} b5 {[%emt 0:00:00]} 21. Rac1 {[%emt 0:00:00]} Bxd5 {[%emt 0:00:00]} 22. exd5 {[%emt 0:00:00]} Ra8 {[%emt 0:00:00]} 23. Re4 {[%emt 0:00:00]} f6 {[%emt 0:00:00]} 24. Nh6+ {[%emt 0:00:00]} 1-0

[Event "30th Abu Dhabi Festival A-Open 2024"]
[Site "Abu Dhabi"]
[Date "2024.08.20"]
[Round "5.11"]
[White "Aditya Varun Gampa"]
[Black "Nofal, Mohamed"]
[Result "1-0"]
[ECO "B12"]
[WhiteElo "2261"]
[BlackElo "1980"]
[Annotator "RC"]
[PlyCount "101"]
[EventDate "2024.08.15"]
[EventType "swiss"]
[EventCountry "UAE"]
[SourceTitle "playchess.com"]
[Source "ChessBase"]
[SourceQuality "1"]
[TimeControl "5400+30"]

1. e4 {[%emt 0:03:32]} c6 {[%emt 0:03:22]} 2. d4 {[%emt 0:00:18]} d5 {[%emt 0:00:03]} 3. e5 {[%emt 0:00:15]} Bf5 {[%emt 0:00:05]} 4. h4 {[%emt 0:00:22]} a6 {[%emt 1:29:00]} 5. g4 {[%emt 0:03:22]} Bd7 {[%emt 0:00:00]} 6. h5 {[%emt 0:00:25]} c5 {[%emt 0:00:00]} 7. dxc5 {[%emt 0:09:02]} Nc6 {[%emt 0:00:00]} 8. f4 {[%emt 0:07:18]} Qa5+ {[%emt 0:00:00]} 9. Bd2 {[%emt 0:05:33]} Qxc5 {[%emt 0:00:00]} 10. Nh3 {[%emt 0:01:40]} e6 {[%emt 0:00:00]} 11. Nf2 {[%emt 0:00:50]} Qb6 {[%emt 0:00:00]} 12. Nd3 {[%emt 0:01:27]} Nb4 {[%emt 0:00:00]} 13. Nc3 {[%emt 0:06:09]} Bc6 {[%emt 0:00:00]} 14. Bg2 {[%emt 0:02:45]} Nxd3+ {[%emt 0:00:00]} 15. cxd3 {[%emt 0:00:03]} Qxb2 {[%emt 0:00:00]} 16. Rb1 {[%emt 0:02:05]} Qa3 {[%emt 0:00:00]} 17. O-O {[%emt 0:00:25]} Bc5+ {[%emt 0:00:00]} 18. Kh2 {[%emt 0:00:29]} Ba7 {[%emt 0:00:00]} 19. Qf3 {[%emt 0:04:50]} Nh6 {[%emt 0:00:00]} 20. Kh3 {[%emt 0:11:32]} O-O-O {[%emt 0:00:00]} 21. Rb3 {[%emt 0:03:08]} Qe7 {[%emt 0:00:00]} 22. Ne2 {[%emt 0:02:23]} f6 {[%emt 0:00:00]} 23. d4 {[%emt 0:08:28]} Kb8 {[%emt 0:00:00]} 24. Rfb1 {[%emt 0:02:30]} Ka8 {[%emt 0:00:00]} 25. Ba5 {[%emt 0:03:24]} Rd7 {[%emt 0:00:00]} 26. Bb6 {[%emt 0:00:58]} g6 {[%emt 0:00:00]} 27. exf6 {[%emt 0:02:32]} Qxf6 {[%emt 0:00:00]} 28. g5 {[%emt 0:00:55]} Qf5+ {[%emt 0:00:00]} 29. Kg3 {[%emt 0:00:20]} Ng8 {[%emt 0:00:00]} 30. Bxa7 {[%emt 0:00:06]} Kxa7 {[%emt 0:00:00]} 31. Bh3 {[%emt 0:00:13]} Qf7 {[%emt 0:00:00]} 32. Qe3 {[%emt 0:02:35]} Rd6 {[%emt 0:00:00]} 33. Qe5 {[%emt 0:00:16]} Nf6 {[%emt 0:00:00]} 34. Qxf6 {[%emt 0:01:25]} Qxf6 {[%emt 0:00:00]} 35. gxf6 {[%emt 0:00:05]} Rf8 {[%emt 0:00:00]} 36. hxg6 {[%emt 0:00:17]} hxg6 {[%emt 0:00:00]} 37. Ng1 {[%emt 0:01:04]} Rxf6 {[%emt 0:00:00]} 38. Nf3 {[%emt 0:00:04]} Rd7 {[%emt 0:00:31]} 39. Ne5 {[%emt 0:00:07]} Rg7 {[%emt 0:00:03]} 40. Rb6 {[%emt 0:00:56]} Bb5 {[%emt 0:01:01]} 41. Rxe6 {[%emt 0:00:00]} Rxe6 {[%emt 0:00:07]} 42. Bxe6 {[%emt 0:00:00]} Rc7 {[%emt 0:01:54]} 43. Bxd5 {[%emt 0:01:14]} Rc2 {[%emt 0:00:24]} 44. a4 {[%emt 0:00:10]} Bc6 {[%emt 0:00:37]} 45. Bxc6 {[%emt 0:00:06]} bxc6 {[%emt 0:00:02]} 46. a5 {[%emt 0:00:17]} Ka8 {[%emt 0:02:18]} 47. Rb6 {[%emt 0:00:07]} g5 {[%emt 0:01:43]} 48. f5 {[%emt 0:00:11]} g4 {[%emt 0:00:28]} 49. f6 {[%emt 0:00:10]} Rc3+ {[%emt 0:00:06]} 50. Kxg4 {[%emt 0:00:05]} Rc1 {[%emt 0:00:21]} 51. Kf5 {[%emt 0:00:05]} 1-0

[Event "30th Abu Dhabi Festival A-Open 2024"]
[Site "Abu Dhabi"]
[Date "2024.08.20"]
[Round "5.12"]
[White "Kuandykuly, Danis"]
[Black "Harutyunyan, Arman G."]
[Result "1-0"]
[ECO "C90"]
[WhiteElo "2224"]
[BlackElo "1957"]
[Annotator "RC"]
[PlyCount "102"]
[EventDate "2024.08.15"]
[EventType "swiss"]
[EventCountry "UAE"]
[SourceTitle "playchess.com"]
[Source "ChessBase"]
[SourceQuality "1"]
[TimeControl "5400+30"]

1. e4 {[%emt 0:01:42]} e5 {[%emt 0:00:15]} 2. Nf3 {[%emt 0:01:46]} Nc6 {[%emt 0:00:18]} 3. Bb5 {[%emt 0:01:33]} a6 {[%emt 0:00:20]} 4. Ba4 {[%emt 0:00:05]} Nf6 {[%emt 0:00:11]} 5. O-O {[%emt 0:00:10]} Be7 {[%emt 0:00:23]} 6. d3 {[%emt 0:01:42]} b5 {[%emt 0:00:40]} 7. Bb3 {[%emt 0:00:04]} d6 {[%emt 0:00:21]} 8. c3 {[%emt 0:00:20]} Na5 {[%emt 0:01:40]} 9. Bc2 {[%emt 0:00:14]} c5 {[%emt 0:01:40]} 10. Nbd2 {[%emt 0:04:20]} Bb7 {[%emt 0:00:36]} 11. Re1 {[%emt 1:24:04]} O-O {[%emt 0:00:19]} 12. d4 {[%emt 0:00:30]} cxd4 {[%emt 0:16:03]} 13. cxd4 {[%emt 0:00:00]} Qc7 {[%emt 0:01:08]} 14. Nf1 {[%emt 0:01:00]} Rfe8 {[%emt 0:17:14]} 15. Ng3 {[%emt 0:00:00]} h6 {[%emt 0:56:52]} 16. b3 {[%emt 0:00:00]} Rac8 {[%emt 0:00:00]} 17. Re2 {[%emt 0:01:30]} exd4 {[%emt 0:00:00]} 18. Bb2 {[%emt 0:00:00]} Nc6 {[%emt 0:00:00]} 19. Rc1 {[%emt 0:00:00]} Qa5 {[%emt 0:00:00]} 20. Nxd4 {[%emt 0:00:00]} Ne5 {[%emt 0:00:00]} 21. Bb1 {[%emt 0:00:00]} Rxc1 {[%emt 0:00:00]} 22. Qxc1 {[%emt 0:00:00]} Rc8 {[%emt 0:00:00]} 23. Qd1 {[%emt 0:00:00]} Qb6 {[%emt 0:00:00]} 24. Ndf5 {[%emt 0:00:00]} Bf8 {[%emt 0:00:00]} 25. Bd4 {[%emt 0:00:00]} Qc7 {[%emt 0:00:00]} 26. Rc2 {[%emt 0:00:00]} Qd8 {[%emt 0:00:38]} 27. Rxc8 {[%emt 0:00:00]} Qxc8 {[%emt 0:01:09]} 28. f4 {[%emt 0:00:00]} Ned7 {[%emt 0:04:43]} 29. Qd2 {[%emt 0:00:00]} g6 {[%emt 0:00:00]} 30. e5 {[%emt 0:00:00]} dxe5 {[%emt 0:00:24]} 31. fxe5 {[%emt 0:00:00]} Ng4 {[%emt 0:00:31]} 32. Qf4 {[%emt 0:00:00]} Ndxe5 {[%emt 0:00:34]} 33. h3 {[%emt 0:00:00]} Qc7 {[%emt 0:00:29]} 34. Kh1 {[%emt 0:01:22]} g5 {[%emt 0:00:29]} 35. Qf1 {[%emt 0:01:53]} Nf6 {[%emt 0:00:29]} 36. Nxh6+ {[%emt 0:02:55]} Bxh6 {[%emt 0:00:01]} 37. Qxf6 {[%emt 0:00:03]} Qc1+ {[%emt 0:00:41]} 38. Kh2 {[%emt 0:00:28]} Qd2 {[%emt 0:00:49]} 39. Qf2 {[%emt 0:02:46]} Qxf2 {[%emt 0:00:27]} 40. Bxf2 {[%emt 0:00:01]} Bf8 {[%emt 0:00:33]} 41. Ne4 {[%emt 0:00:28]} Be7 {[%emt 0:00:28]} 42. Bd4 {[%emt 0:01:26]} Ng6 {[%emt 0:00:33]} 43. Kg1 {[%emt 0:00:42]} f5 {[%emt 0:00:30]} 44. Ng3 {[%emt 0:00:28]} Nf4 {[%emt 0:00:30]} 45. Nxf5 {[%emt 0:00:18]} Bb4 {[%emt 0:00:21]} 46. Be3 {[%emt 0:00:47]} Bxg2 {[%emt 0:00:40]} 47. Bxf4 {[%emt 0:00:12]} Bxh3 {[%emt 0:00:11]} 48. Bxg5 {[%emt 0:00:10]} Kf7 {[%emt 0:00:19]} 49. Kh2 {[%emt 0:00:58]} Bf1 {[%emt 0:00:11]} 50. Bf4 {[%emt 0:00:43]} Ke6 {[%emt 0:00:11]} 51. Ng3 {[%emt 0:00:08]} Kd5 {[%emt 0:02:09]} 1-0

[Event "30th Abu Dhabi Festival A-Open 2024"]
[Site "Abu Dhabi"]
[Date "2024.08.21"]
[Round "6.1"]
[White "Lad Mandar Pradip"]
[Black "Md Imran"]
[Result "1/2-1/2"]
[ECO "E04"]
[WhiteElo "2254"]
[BlackElo "2225"]
[Annotator "RC"]
[PlyCount "36"]
[EventDate "2024.08.15"]
[EventType "swiss"]
[EventCountry "UAE"]
[SourceTitle "playchess.com"]
[Source "ChessBase"]
[SourceQuality "1"]
[TimeControl "5400+30"]

1. d4 {[%emt 0:02:41]} Nf6 {[%emt 0:00:51]} 2. c4 {[%emt 0:00:10]} e6 {[%emt 0:01:11]} 3. Nf3 {[%emt 0:00:16]} d5 {[%emt 0:00:04]} 4. g3 {[%emt 0:00:07]} a6 {[%emt 0:01:06]} 5. Bg2 {[%emt 0:01:05]} dxc4 {[%emt 0:00:08]} 6. O-O {[%emt 0:09:04]} Nc6 {[%emt 0:00:21]} 7. e3 {[%emt 0:01:37]} Rb8 {[%emt 0:04:29]} 8. Nfd2 {[%emt 0:02:12]} e5 {[%emt 0:00:24]} 9. Qa4 {[%emt 0:12:16]} Bd7 {[%emt 0:07:03]} 10. Qxc4 {[%emt 0:00:05]} Bd6 {[%emt 0:01:59]} 11. d5 {[%emt 0:04:22]} b5 {[%emt 0:02:24]} 12. Qb3 {[%emt 0:04:07]} Ne7 {[%emt 0:00:19]} 13. Nc3 {[%emt 0:00:13]} O-O {[%emt 0:00:57]} 14. Nce4 {[%emt 0:02:56]} Nxe4 {[%emt 0:03:29]} 15. Nxe4 {[%emt 0:00:03]} f5 {[%emt 0:00:15]} 16. Nxd6 {[%emt 0:05:09]} cxd6 {[%emt 0:00:02]} 17. e4 {[%emt 0:03:00]} fxe4 {[%emt 0:00:53]} 18. Bg5 {[%emt 0:06:24]} h6 {[%emt 0:05:52]} 1/2-1/2

[Event "30th Abu Dhabi Festival A-Open 2024"]
[Site "Abu Dhabi"]
[Date "2024.08.21"]
[Round "6.2"]
[White "Manukyan, Sargis A."]
[Black "Samimi, Armin"]
[Result "1-0"]
[ECO "D00"]
[WhiteElo "2211"]
[BlackElo "2012"]
[Annotator "RC"]
[PlyCount "73"]
[EventDate "2024.08.15"]
[EventType "swiss"]
[EventCountry "UAE"]
[SourceTitle "playchess.com"]
[Source "ChessBase"]
[SourceQuality "1"]
[TimeControl "5400+30"]

1. d4 {[%emt 0:00:03]} d5 {[%emt 0:00:26]} 2. Nc3 {[%emt 0:00:06]} c5 {[%emt 0:08:54]} 3. e4 {[%emt 0:02:12]} dxe4 {[%emt 0:07:57]} 4. Bb5+ {[%emt 0:04:53]} Bd7 {[%emt 0:02:29]} 5. dxc5 {[%emt 0:00:07]} Nf6 {[%emt 0:05:20]} 6. Bg5 {[%emt 0:01:42]} Qa5 {[%emt 0:05:02]} 7. Bxf6 {[%emt 0:01:11]} exf6 {[%emt 0:16:02]} 8. Bxd7+ {[%emt 0:07:03]} Nxd7 {[%emt 0:00:19]} 9. a3 {[%emt 0:00:09]} Qxc5 {[%emt 0:10:39]} 10. Nxe4 {[%emt 0:00:26]} Qb6 {[%emt 0:02:35]} 11. Qe2 {[%emt 0:02:40]} Qa5+ {[%emt 0:10:35]} 12. Nc3+ {[%emt 0:06:34]} Qe5 {[%emt 0:01:33]} 13. O-O-O {[%emt 0:00:58]} Qxe2 {[%emt 0:01:04]} 14. Ngxe2 {[%emt 0:00:05]} O-O-O {[%emt 0:00:55]} 15. Nd4 {[%emt 0:01:43]} Ne5 {[%emt 0:03:41]} 16. Ne4 {[%emt 0:01:31]} a6 {[%emt 0:02:33]} 17. h3 {[%emt 0:10:34]} Kc7 {[%emt 0:01:58]} 18. Rhe1 {[%emt 0:04:35]} g6 {[%emt 0:06:20]} 19. Nxf6 {[%emt 0:02:03]} Bg7 {[%emt 0:00:22]} 20. Rxe5 {[%emt 0:03:11]} Bxf6 {[%emt 0:00:18]} 21. Re4 {[%emt 0:00:05]} Rd7 {[%emt 0:00:49]} 22. c3 {[%emt 0:00:38]} Rhd8 {[%emt 0:01:28]} 23. Kc2 {[%emt 0:00:20]} Bg7 {[%emt 0:00:12]} 24. Rd2 {[%emt 0:02:28]} Bh6 {[%emt 0:05:03]} 25. Rde2 {[%emt 0:00:06]} Bf8 {[%emt 0:00:49]} 26. Nf3 {[%emt 0:00:45]} f6 {[%emt 0:00:01]} 27. Re8 {[%emt 0:02:01]} Rxe8 {[%emt 0:00:19]} 28. Rxe8 {[%emt 0:00:04]} Bc5 {[%emt 0:00:06]} 29. Re2 {[%emt 0:00:05]} b5 {[%emt 0:00:20]} 30. Nd2 {[%emt 0:00:18]} f5 {[%emt 0:00:35]} 31. b4 {[%emt 0:00:10]} Bb6 {[%emt 0:01:42]} 32. c4 {[%emt 0:00:02]} bxc4 {[%emt 0:00:27]} 33. Nxc4 {[%emt 0:00:04]} Bd4 {[%emt 0:00:11]} 34. Rd2 {[%emt 0:00:24]} f4 {[%emt 0:00:37]} 35. f3 {[%emt 0:00:13]} Kc6 {[%emt 0:00:16]} 36. Kb3 {[%emt 0:00:42]} Rd5 {[%emt 0:00:41]} 37. Na5+ {[%emt 0:00:10]} 1-0